[Event "Titled Tuesday Blitz August 16 Early 2022"]
[White "Fawzy, Adham"]
[Black "Lazavik, Denis"]
[WhiteFideId "10613129"]
[BlackFideId "13515110"]
[WhiteElo "2541"]
[BlackElo "2437"]
[Result "1/2-1/2"]
[Round "07"]
[TimeControl "180+1"]
[Date "2022.08.16"]
[WhiteClock "0:00:06"]
[BlackClock "0:00:02"]

1. e4 {[%clk 0:03:00]}  c5 {[%clk 0:02:59]} 2. c4 {[%clk 0:02:59]}  Nc6 {[%clk 0:02:57]} 3. Nc3 {[%clk 0:03:00]}  g6 {[%clk 0:02:54]} 4. g3 {[%clk 0:03:00]}  Bg7 {[%clk 0:02:55]} 5. Bg2 {[%clk 0:03:01]}  d6 {[%clk 0:02:52]} 6. Nge2 {[%clk 0:03:02]}  Nf6 {[%clk 0:02:52]} 7. O-O {[%clk 0:03:02]}  O-O {[%clk 0:02:52]} 8. d3 {[%clk 0:03:03]}  Rb8 {[%clk 0:02:53]} 9. a3 {[%clk 0:03:04]}  a6 {[%clk 0:02:53]} 10. Rb1 {[%clk 0:03:04]}  b5 {[%clk 0:02:52]} 11. cxb5 {[%clk 0:03:05]}  axb5 {[%clk 0:02:52]} 12. b4 {[%clk 0:03:06]}  cxb4 {[%clk 0:02:48]} 13. axb4 {[%clk 0:03:07]}  Bg4 {[%clk 0:02:40]} 14. Be3 {[%clk 0:02:58]}  d5 {[%clk 0:02:22]} 15. exd5 {[%clk 0:02:52]}  Ne5 {[%clk 0:02:21]} 16. Qb3 {[%clk 0:02:24]}  Qd7 {[%clk 0:02:01]} 17. Nd4 {[%clk 0:02:16]}  Rfc8 {[%clk 0:01:53]} 18. Bf4 {[%clk 0:01:50]}  Rxc3 {[%clk 0:01:44]} 19. Qxc3 {[%clk 0:01:48]}  Nxd5 {[%clk 0:01:45]} 20. Qd2 {[%clk 0:01:24]}  Nxf4 {[%clk 0:01:00]} 21. Qxf4 {[%clk 0:01:25]}  Rd8 {[%clk 0:00:58]} 22. Nc6 {[%clk 0:01:20]}  Nxc6 {[%clk 0:00:41]} 23. Bxc6 {[%clk 0:01:21]}  Qxc6 {[%clk 0:00:42]} 24. Qxg4 {[%clk 0:01:20]}  Rd4 {[%clk 0:00:38]} 25. Qe2 {[%clk 0:01:12]}  Bf6 {[%clk 0:00:37]} 26. Rfc1 {[%clk 0:01:08]}  Qd7 {[%clk 0:00:37]} 27. Rc3 {[%clk 0:00:58]}  Kg7 {[%clk 0:00:36]} 28. Qc2 {[%clk 0:00:40]}  h5 {[%clk 0:00:36]} 29. Rc7 {[%clk 0:00:40]}  Qg4 {[%clk 0:00:35]} 30. Qd1 {[%clk 0:00:40]}  Rxb4 {[%clk 0:00:32]} 31. Rc5 {[%clk 0:00:30]}  Bd4 {[%clk 0:00:22]} 32. Rc2 {[%clk 0:00:28]}  Rxb1 {[%clk 0:00:17]} 33. Qxb1 {[%clk 0:00:28]}  b4 {[%clk 0:00:18]} 34. Rc4 {[%clk 0:00:26]}  e5 {[%clk 0:00:12]} 35. Rxb4 {[%clk 0:00:23]}  h4 {[%clk 0:00:12]} 36. Rxd4 {[%clk 0:00:11]}  exd4 {[%clk 0:00:12]} 37. Qf1 {[%clk 0:00:08]}  h3 {[%clk 0:00:11]} 38. f3 {[%clk 0:00:09]}  Qc8 {[%clk 0:00:09]} 39. Qe2 {[%clk 0:00:08]}  Qc1+ {[%clk 0:00:08]} 40. Qf1 {[%clk 0:00:07]}  Qe3+ {[%clk 0:00:07]} 41. Kh1 {[%clk 0:00:07]}  Qd2 {[%clk 0:00:06]} 42. f4 {[%clk 0:00:07]}  f5 {[%clk 0:00:06]} 43. Qxh3 {[%clk 0:00:03]}  Qxd3 {[%clk 0:00:07]} 44. Qh4 {[%clk 0:00:03]}  Qe4+ {[%clk 0:00:07]} 45. Kg1 {[%clk 0:00:04]}  d3 {[%clk 0:00:07]} 46. Qd8 {[%clk 0:00:04]}  Qe3+ {[%clk 0:00:07]} 47. Kg2 {[%clk 0:00:04]}  Qe2+ {[%clk 0:00:07]} 48. Kh3 {[%clk 0:00:04]}  d2 {[%clk 0:00:06]} 49. Qd7+ {[%clk 0:00:03]}  Kh6 {[%clk 0:00:06]} 50. Qd8 {[%clk 0:00:03]}  Qg4+ {[%clk 0:00:04]} 51. Kg2 {[%clk 0:00:04]}  Qe2+ {[%clk 0:00:04]} 52. Kh3 {[%clk 0:00:04]}  Kg7 {[%clk 0:00:02]} 53. Qd7+ {[%clk 0:00:04]}  Kg8 {[%clk 0:00:01]} 54. Qd8+ {[%clk 0:00:04]}  Kh7 {[%clk 0:00:02]} 55. Qd7+ {[%clk 0:00:05]}  Kh6 {[%clk 0:00:02]} 56. Qd8 {[%clk 0:00:06]} 1/2-1/2


[Site "https://www.chess.com"]

[Event "Titled Tuesday Blitz August 16 Early 2022"]
[White "Ferriz Barrios, Andres"]
[Black "Broca Jimenez, Fernando"]
[WhiteFideId "5104467"]
[BlackFideId "5104742"]
[WhiteElo "2102"]
[BlackElo "2062"]
[Result "1-0"]
[Round "07"]
[TimeControl "180+2"]
[Date "2022.08.18"]
[WhiteClock "0:00:00"]
[BlackClock "0:00:00"]

1. d4 {[%clk 0:00:00]}  Nf6 {[%clk 0:00:00]} 2. Nf3 {[%clk 0:00:00]}  g6 {[%clk 0:00:00]} 3. Nc3 {[%clk 0:00:00]}  Bg7 {[%clk 0:00:00]} 4. Bf4 {[%clk 0:00:00]}  d6 {[%clk 0:00:00]} 5. e4 {[%clk 0:00:00]}  O-O {[%clk 0:00:00]} 6. Qd2 {[%clk 0:00:00]}  Nbd7 {[%clk 0:00:00]} 7. O-O-O {[%clk 0:00:00]}  Re8 {[%clk 0:00:00]} 8. e5 {[%clk 0:00:00]}  Nh5 {[%clk 0:00:00]} 9. exd6 {[%clk 0:00:00]}  exd6 {[%clk 0:00:00]} 10. Bg3 {[%clk 0:00:00]}  Nxg3 {[%clk 0:00:00]} 11. hxg3 {[%clk 0:00:00]}  Nf6 {[%clk 0:00:00]} 12. Bc4 {[%clk 0:00:00]}  d5 {[%clk 0:00:00]} 13. Bd3 {[%clk 0:00:00]}  Bg4 {[%clk 0:00:00]} 14. Rde1 {[%clk 0:00:00]}  Bxf3 {[%clk 0:00:00]} 15. gxf3 {[%clk 0:00:00]}  Qd7 {[%clk 0:00:00]} 16. Re3 {[%clk 0:00:00]}  c6 {[%clk 0:00:00]} 17. Bf1 {[%clk 0:00:00]}  Qd6 {[%clk 0:00:00]} 18. g4 {[%clk 0:00:00]}  Nd7 {[%clk 0:00:00]} 19. a3 {[%clk 0:00:00]}  Nb6 {[%clk 0:00:00]} 20. f4 {[%clk 0:00:00]}  Rxe3 {[%clk 0:00:00]} 21. fxe3 {[%clk 0:00:00]}  Re8 {[%clk 0:00:00]} 22. f5 {[%clk 0:00:00]}  Qe7 {[%clk 0:00:00]} 23. Rh3 {[%clk 0:00:00]}  Qg5 {[%clk 0:00:00]} 24. fxg6 {[%clk 0:00:00]}  fxg6 {[%clk 0:00:00]} 25. Be2 {[%clk 0:00:00]}  Nc4 {[%clk 0:00:00]} 26. Bxc4 {[%clk 0:00:00]}  dxc4 {[%clk 0:00:00]} 27. Qe2 {[%clk 0:00:00]}  Bxd4 {[%clk 0:00:00]} 28. Qxc4+ {[%clk 0:00:00]} 1-0


[Site "https://www.chess.com"]

[Event "Titled Tuesday Blitz August 16 Early 2022"]
[White "Filippova, Margarita"]
[Black "Kovacevic, Radmila"]
[WhiteFideId "34199680"]
[BlackFideId "933171"]
[WhiteElo "1734"]
[BlackElo "2157"]
[Result "1-0"]
[Round "07"]
[TimeControl "180+2"]
[Date "2022.08.18"]
[WhiteClock "0:00:00"]
[BlackClock "0:00:00"]

1. Nf3 {[%clk 0:00:00]}  d5 {[%clk 0:00:00]} 2. d4 {[%clk 0:00:00]}  g6 {[%clk 0:00:00]} 3. c4 {[%clk 0:00:00]}  Bg7 {[%clk 0:00:00]} 4. Nc3 {[%clk 0:00:00]}  dxc4 {[%clk 0:00:00]} 5. e4 {[%clk 0:00:00]}  c5 {[%clk 0:00:00]} 6. d5 {[%clk 0:00:00]}  Bxc3+ {[%clk 0:00:00]} 7. bxc3 {[%clk 0:00:00]}  Qa5 {[%clk 0:00:00]} 8. Qc2 {[%clk 0:00:00]}  b5 {[%clk 0:00:00]} 9. Be3 {[%clk 0:00:00]}  Na6 {[%clk 0:00:00]} 10. Be2 {[%clk 0:00:00]}  Nf6 {[%clk 0:00:00]} 11. O-O {[%clk 0:00:00]}  O-O {[%clk 0:00:00]} 12. a4 {[%clk 0:00:00]}  b4 {[%clk 0:00:00]} 13. Bxc4 {[%clk 0:00:00]}  bxc3 {[%clk 0:00:00]} 14. e5 {[%clk 0:00:00]}  Bf5 {[%clk 0:00:00]} 15. Qe2 {[%clk 0:00:00]}  Nb4 {[%clk 0:00:00]} 16. exf6 {[%clk 0:00:00]}  exf6 {[%clk 0:00:00]} 17. Rfc1 {[%clk 0:00:00]}  c2 {[%clk 0:00:00]} 18. Nh4 {[%clk 0:00:00]}  Be4 {[%clk 0:00:00]} 19. Bd2 {[%clk 0:00:00]}  Rfe8 {[%clk 0:00:00]} 20. Qg4 {[%clk 0:00:00]}  f5 {[%clk 0:00:00]} 21. Qg5 {[%clk 0:00:00]}  Qd8 {[%clk 0:00:00]} 22. Qxd8 {[%clk 0:00:00]}  Raxd8 {[%clk 0:00:00]} 23. Re1 {[%clk 0:00:00]}  Nxd5 {[%clk 0:00:00]} 24. f3 {[%clk 0:00:00]}  Nb6 {[%clk 0:00:00]} 25. Ba5 {[%clk 0:00:00]}  Bd5 {[%clk 0:00:00]} 26. Bxb6 {[%clk 0:00:00]}  Rxe1+ {[%clk 0:00:00]} 27. Rxe1 {[%clk 0:00:00]}  axb6 {[%clk 0:00:00]} 28. Bd3 {[%clk 0:00:00]}  Bb3 {[%clk 0:00:00]} 29. Be2 {[%clk 0:00:00]}  Rd2 {[%clk 0:00:00]} 30. Kf1 {[%clk 0:00:00]}  Bxa4 {[%clk 0:00:00]} 31. f4 {[%clk 0:00:00]}  c4 {[%clk 0:00:00]} 32. Nf3 {[%clk 0:00:00]}  Rxe2 {[%clk 0:00:00]} 33. Kxe2 {[%clk 0:00:00]}  c3 {[%clk 0:00:00]} 34. Nd4 {[%clk 0:00:00]}  b5 {[%clk 0:00:00]} 35. Kd3 {[%clk 0:00:00]}  b4 {[%clk 0:00:00]} 36. Kc4 {[%clk 0:00:00]}  b3 {[%clk 0:00:00]} 37. Nxb3 {[%clk 0:00:00]}  Bc6 {[%clk 0:00:00]} 38. Kxc3 {[%clk 0:00:00]}  Bxg2 {[%clk 0:00:00]} 39. Kxc2 {[%clk 0:00:00]}  Kg7 {[%clk 0:00:00]} 40. Nd4 {[%clk 0:00:00]}  Kf6 {[%clk 0:00:00]} 41. Kd2 {[%clk 0:00:00]}  h6 {[%clk 0:00:00]} 42. Ke3 {[%clk 0:00:00]}  g5 {[%clk 0:00:00]} 43. Rg1 {[%clk 0:00:00]} 1-0


[Site "https://www.chess.com"]

[Event "Titled Tuesday Blitz August 16 Early 2022"]
[White "Gheorghiu, Calin"]
[Black "Skliarov, Viktor"]
[WhiteFideId "1200305"]
[BlackFideId "14106736"]
[WhiteElo "2168"]
[BlackElo "2257"]
[Result "1-0"]
[Round "07"]
[TimeControl "180+1"]
[Date "2022.08.16"]
[WhiteClock "0:00:15"]
[BlackClock "0:00:01"]

1. d4 {[%clk 0:02:54]}  Nf6 {[%clk 0:03:00]} 2. Nc3 {[%clk 0:02:54]}  g6 {[%clk 0:02:58]} 3. Bf4 {[%clk 0:02:54]}  Bg7 {[%clk 0:02:58]} 4. e4 {[%clk 0:02:50]}  d6 {[%clk 0:02:58]} 5. Nf3 {[%clk 0:02:46]}  O-O {[%clk 0:02:57]} 6. Qd2 {[%clk 0:02:45]}  Bg4 {[%clk 0:02:56]} 7. Be2 {[%clk 0:02:44]}  c5 {[%clk 0:02:45]} 8. dxc5 {[%clk 0:02:37]}  dxc5 {[%clk 0:02:44]} 9. Qxd8 {[%clk 0:02:35]}  Rxd8 {[%clk 0:02:45]} 10. h3 {[%clk 0:02:34]}  Bxf3 {[%clk 0:02:37]} 11. Bxf3 {[%clk 0:02:34]}  Nc6 {[%clk 0:02:38]} 12. e5 {[%clk 0:02:30]}  Nh5 {[%clk 0:02:27]} 13. Bxh5 {[%clk 0:02:15]}  gxh5 {[%clk 0:02:25]} 14. e6 {[%clk 0:02:06]}  Bxc3+ {[%clk 0:02:00]} 15. bxc3 {[%clk 0:02:04]}  fxe6 {[%clk 0:02:00]} 16. O-O {[%clk 0:01:58]}  Rd5 {[%clk 0:01:44]} 17. Rfe1 {[%clk 0:01:56]}  Kf7 {[%clk 0:01:41]} 18. Re4 {[%clk 0:01:38]}  Rg8 {[%clk 0:01:38]} 19. Rae1 {[%clk 0:01:34]}  Rg6 {[%clk 0:01:38]} 20. Be3 {[%clk 0:01:23]}  b6 {[%clk 0:01:33]} 21. a4 {[%clk 0:01:11]}  Ne5 {[%clk 0:01:02]} 22. Kf1 {[%clk 0:00:53]}  Nd7 {[%clk 0:00:56]} 23. c4 {[%clk 0:00:49]}  Rf5 {[%clk 0:00:54]} 24. Bc1 {[%clk 0:00:40]}  e5 {[%clk 0:00:33]} 25. Bb2 {[%clk 0:00:28]}  Re6 {[%clk 0:00:33]} 26. f3 {[%clk 0:00:24]}  Nb8 {[%clk 0:00:16]} 27. Bxe5 {[%clk 0:00:21]}  Nc6 {[%clk 0:00:16]} 28. Bc3 {[%clk 0:00:21]}  Rxe4 {[%clk 0:00:16]} 29. Rxe4 {[%clk 0:00:22]}  e6 {[%clk 0:00:14]} 30. Ke2 {[%clk 0:00:22]}  Rg5 {[%clk 0:00:14]} 31. Kf2 {[%clk 0:00:22]}  Rg8 {[%clk 0:00:12]} 32. Rh4 {[%clk 0:00:20]}  Rg5 {[%clk 0:00:11]} 33. f4 {[%clk 0:00:19]}  Rf5 {[%clk 0:00:09]} 34. Kf3 {[%clk 0:00:19]}  Kg6 {[%clk 0:00:10]} 35. Ke4 {[%clk 0:00:17]}  Rf8 {[%clk 0:00:05]} 36. g4 {[%clk 0:00:17]}  hxg4 {[%clk 0:00:05]} 37. hxg4 {[%clk 0:00:17]}  Rd8 {[%clk 0:00:02]} 38. g5 {[%clk 0:00:17]}  Rd7 {[%clk 0:00:01]} 39. Rh6+ {[%clk 0:00:17]}  Kf7 {[%clk 0:00:02]} 40. Rxh7+ {[%clk 0:00:17]}  Ke8 {[%clk 0:00:02]} 41. g6 {[%clk 0:00:15]}  Ne7 {[%clk 0:00:02]} 42. Rh8+ {[%clk 0:00:14]}  Ng8 {[%clk 0:00:01]} 43. Rxg8+ {[%clk 0:00:15]} 1-0


[Site "https://www.chess.com"]

[Event "Titled Tuesday Blitz August 16 Early 2022"]
[White "Ginzburg, Yakov"]
[Black "Zheenbekov, Nurgazy"]
[WhiteFideId "4157176"]
[BlackFideId "13800485"]
[WhiteElo "2405"]
[BlackElo "2075"]
[Result "1-0"]
[Round "07"]
[TimeControl "180+2"]
[Date "2022.08.18"]
[WhiteClock "0:00:00"]
[BlackClock "0:00:00"]

1. d4 {[%clk 0:00:00]}  Nf6 {[%clk 0:00:00]} 2. Nf3 {[%clk 0:00:00]}  e6 {[%clk 0:00:00]} 3. c4 {[%clk 0:00:00]}  b6 {[%clk 0:00:00]} 4. g3 {[%clk 0:00:00]}  Ba6 {[%clk 0:00:00]} 5. Nfd2 {[%clk 0:00:00]}  c6 {[%clk 0:00:00]} 6. Bg2 {[%clk 0:00:00]}  d5 {[%clk 0:00:00]} 7. b3 {[%clk 0:00:00]}  Bb4 {[%clk 0:00:00]} 8. O-O {[%clk 0:00:00]}  O-O {[%clk 0:00:00]} 9. e4 {[%clk 0:00:00]}  Nbd7 {[%clk 0:00:00]} 10. e5 {[%clk 0:00:00]}  Ne8 {[%clk 0:00:00]} 11. f4 {[%clk 0:00:00]}  Nc7 {[%clk 0:00:00]} 12. Qc2 {[%clk 0:00:00]}  Rc8 {[%clk 0:00:00]} 13. Nf3 {[%clk 0:00:00]}  Be7 {[%clk 0:00:00]} 14. f5 {[%clk 0:00:00]}  exf5 {[%clk 0:00:00]} 15. Qxf5 {[%clk 0:00:00]}  dxc4 {[%clk 0:00:00]} 16. Ng5 {[%clk 0:00:00]}  g6 {[%clk 0:00:00]} 17. Qg4 {[%clk 0:00:00]}  Nxe5 {[%clk 0:00:00]} 18. dxe5 {[%clk 0:00:00]}  cxb3 {[%clk 0:00:00]} 19. Rd1 {[%clk 0:00:00]}  Qxd1+ {[%clk 0:00:00]} 20. Qxd1 {[%clk 0:00:00]}  Bxg5 {[%clk 0:00:00]} 21. axb3 {[%clk 0:00:00]}  Rfd8 {[%clk 0:00:00]} 22. Qe1 {[%clk 0:00:00]}  Be2 {[%clk 0:00:00]} 23. Nc3 {[%clk 0:00:00]} 1-0


[Site "https://www.chess.com"]

[Event "Titled Tuesday Blitz August 16 Early 2022"]
[White "Grandelius, Nils"]
[Black "Atanasov, Anthony"]
[WhiteFideId "1710400"]
[BlackFideId "2623897"]
[WhiteElo "2617"]
[BlackElo "1928"]
[Result "1-0"]
[Round "07"]
[TimeControl "180+1"]
[Date "2022.08.16"]
[WhiteClock "0:00:11"]
[BlackClock "0:00:02"]

1. Nf3 {[%clk 0:03:00]}  Nf6 {[%clk 0:02:57]} 2. g3 {[%clk 0:03:00]}  d5 {[%clk 0:02:57]} 3. Bg2 {[%clk 0:03:00]}  Bf5 {[%clk 0:02:57]} 4. O-O {[%clk 0:03:00]}  e6 {[%clk 0:02:57]} 5. c4 {[%clk 0:03:00]}  Be7 {[%clk 0:02:57]} 6. cxd5 {[%clk 0:02:55]}  exd5 {[%clk 0:02:58]} 7. Qb3 {[%clk 0:02:55]}  Na6 {[%clk 0:02:39]} 8. d4 {[%clk 0:02:38]}  O-O {[%clk 0:02:33]} 9. Nc3 {[%clk 0:02:36]}  Nb4 {[%clk 0:02:31]} 10. Ne1 {[%clk 0:02:15]}  Nc6 {[%clk 0:01:35]} 11. Be3 {[%clk 0:02:00]}  Na5 {[%clk 0:01:34]} 12. Qd1 {[%clk 0:02:00]}  Nc4 {[%clk 0:01:33]} 13. Bc1 {[%clk 0:01:58]}  c6 {[%clk 0:01:31]} 14. Nd3 {[%clk 0:01:57]}  Qa5 {[%clk 0:01:24]} 15. Qb3 {[%clk 0:01:48]}  Bxd3 {[%clk 0:01:18]} 16. exd3 {[%clk 0:01:47]}  Nd6 {[%clk 0:01:19]} 17. Bf4 {[%clk 0:01:34]}  Qb6 {[%clk 0:01:18]} 18. Qxb6 {[%clk 0:01:22]}  axb6 {[%clk 0:01:19]} 19. Rae1 {[%clk 0:01:22]}  Nc8 {[%clk 0:00:55]} 20. Bh3 {[%clk 0:01:22]}  Bd6 {[%clk 0:00:51]} 21. Bxc8 {[%clk 0:01:22]}  Bxf4 {[%clk 0:00:52]} 22. Bxb7 {[%clk 0:01:22]}  Bd2 {[%clk 0:00:39]} 23. Bxa8 {[%clk 0:00:28]}  Bxe1 {[%clk 0:00:40]} 24. Bxc6 {[%clk 0:00:24]}  Bxc3 {[%clk 0:00:38]} 25. bxc3 {[%clk 0:00:25]}  Rc8 {[%clk 0:00:39]} 26. Bb5 {[%clk 0:00:23]}  Rxc3 {[%clk 0:00:39]} 27. Rb1 {[%clk 0:00:24]}  g6 {[%clk 0:00:23]} 28. a4 {[%clk 0:00:21]}  Ra3 {[%clk 0:00:22]} 29. Bc6 {[%clk 0:00:17]}  Rxd3 {[%clk 0:00:19]} 30. Rxb6 {[%clk 0:00:17]}  Rxd4 {[%clk 0:00:19]} 31. a5 {[%clk 0:00:18]}  Rd1+ {[%clk 0:00:19]} 32. Kg2 {[%clk 0:00:18]}  d4 {[%clk 0:00:19]} 33. a6 {[%clk 0:00:15]}  Ra1 {[%clk 0:00:19]} 34. Bb5 {[%clk 0:00:14]}  Nd5 {[%clk 0:00:17]} 35. Rd6 {[%clk 0:00:14]}  Nc7 {[%clk 0:00:13]} 36. Bd3 {[%clk 0:00:12]}  Ne6 {[%clk 0:00:11]} 37. Bc4 {[%clk 0:00:09]}  Nc5 {[%clk 0:00:08]} 38. Rxd4 {[%clk 0:00:09]}  Nxa6 {[%clk 0:00:08]} 39. Rd8+ {[%clk 0:00:10]}  Kg7 {[%clk 0:00:08]} 40. Ra8 {[%clk 0:00:10]}  Ra4 {[%clk 0:00:03]} 41. Bxa6 {[%clk 0:00:10]}  Rb4 {[%clk 0:00:02]} 42. Be2 {[%clk 0:00:10]}  Rb2 {[%clk 0:00:03]} 43. Bf3 {[%clk 0:00:10]}  Rb6 {[%clk 0:00:03]} 44. Ra7 {[%clk 0:00:10]}  Rf6 {[%clk 0:00:04]} 45. Bd5 {[%clk 0:00:10]}  h6 {[%clk 0:00:04]} 46. f4 {[%clk 0:00:11]}  Rf5 {[%clk 0:00:03]} 47. Bc4 {[%clk 0:00:11]}  Rf6 {[%clk 0:00:03]} 48. Kf3 {[%clk 0:00:11]}  g5 {[%clk 0:00:02]} 49. Ke4 {[%clk 0:00:12]}  gxf4 {[%clk 0:00:03]} 50. gxf4 {[%clk 0:00:12]}  h5 {[%clk 0:00:01]} 51. h4 {[%clk 0:00:12]}  Kh8 {[%clk 0:00:01]} 52. Rxf7 {[%clk 0:00:11]}  Rc6 {[%clk 0:00:02]} 53. Bd5 {[%clk 0:00:11]}  Rc7 {[%clk 0:00:02]} 54. Rf5 {[%clk 0:00:10]}  Rh7 {[%clk 0:00:02]} 55. Rf8+ {[%clk 0:00:09]}  Kg7 {[%clk 0:00:02]} 56. Rf7+ {[%clk 0:00:10]}  Kg8 {[%clk 0:00:01]} 57. Rxh7+ {[%clk 0:00:11]}  Kf8 {[%clk 0:00:02]} 58. Kf5 {[%clk 0:00:11]} 1-0


[Site "https://www.chess.com"]

[Event "Titled Tuesday Blitz August 16 Early 2022"]
[White "Hansen, Eric"]
[Black "Bortnyk, Olexandr"]
[WhiteFideId "2606771"]
[BlackFideId "14120828"]
[WhiteElo "2568"]
[BlackElo "2723"]
[Result "0-1"]
[Round "07"]
[TimeControl "180+1"]
[Date "2022.08.16"]
[WhiteClock "0:00:07"]
[BlackClock "0:00:11"]

1. d4 {[%clk 0:03:00]}  d6 {[%clk 0:03:00]} 2. e4 {[%clk 0:02:54]}  Nf6 {[%clk 0:03:00]} 3. Nc3 {[%clk 0:02:54]}  Nbd7 {[%clk 0:03:00]} 4. f4 {[%clk 0:02:48]}  e5 {[%clk 0:03:00]} 5. Nf3 {[%clk 0:02:48]}  exd4 {[%clk 0:03:00]} 6. Qxd4 {[%clk 0:02:48]}  c6 {[%clk 0:03:01]} 7. Be3 {[%clk 0:02:39]}  d5 {[%clk 0:03:01]} 8. e5 {[%clk 0:02:38]}  Bc5 {[%clk 0:03:01]} 9. Qd2 {[%clk 0:02:36]}  Bxe3 {[%clk 0:02:57]} 10. Qxe3 {[%clk 0:02:36]}  Ng4 {[%clk 0:02:57]} 11. Qd2 {[%clk 0:02:05]}  Qb6 {[%clk 0:02:51]} 12. O-O-O {[%clk 0:02:05]}  Nc5 {[%clk 0:02:42]} 13. Kb1 {[%clk 0:01:27]}  h5 {[%clk 0:01:54]} 14. h3 {[%clk 0:01:26]}  Nh6 {[%clk 0:01:54]} 15. Bd3 {[%clk 0:01:13]}  Bd7 {[%clk 0:01:40]} 16. Ng5 {[%clk 0:01:06]}  O-O-O {[%clk 0:01:32]} 17. Rhe1 {[%clk 0:01:06]}  Rhe8 {[%clk 0:01:23]} 18. Be2 {[%clk 0:01:03]}  h4 {[%clk 0:01:22]} 19. Bh5 {[%clk 0:00:58]}  g6 {[%clk 0:01:21]} 20. Bf3 {[%clk 0:00:57]}  Kb8 {[%clk 0:01:17]} 21. Qf2 {[%clk 0:00:56]}  Na4 {[%clk 0:00:58]} 22. Qxb6 {[%clk 0:00:56]}  Nxc3+ {[%clk 0:00:59]} 23. bxc3 {[%clk 0:00:57]}  axb6 {[%clk 0:01:00]} 24. c4 {[%clk 0:00:47]}  dxc4 {[%clk 0:00:58]} 25. Rd4 {[%clk 0:00:47]}  b5 {[%clk 0:00:52]} 26. Red1 {[%clk 0:00:47]}  Kc7 {[%clk 0:00:52]} 27. Be4 {[%clk 0:00:35]}  Bc8 {[%clk 0:00:39]} 28. c3 {[%clk 0:00:28]}  Rxd4 {[%clk 0:00:31]} 29. Rxd4 {[%clk 0:00:24]}  Bf5 {[%clk 0:00:30]} 30. Kc1 {[%clk 0:00:19]}  Ra8 {[%clk 0:00:26]} 31. Kb2 {[%clk 0:00:18]}  Bxe4 {[%clk 0:00:27]} 32. Nxe4 {[%clk 0:00:19]}  Nf5 {[%clk 0:00:26]} 33. Rd2 {[%clk 0:00:19]}  Ne3 {[%clk 0:00:23]} 34. Ng5 {[%clk 0:00:15]}  Rd8 {[%clk 0:00:15]} 35. Rxd8 {[%clk 0:00:08]}  Kxd8 {[%clk 0:00:16]} 36. Nxf7+ {[%clk 0:00:09]}  Ke7 {[%clk 0:00:14]} 37. Nh8 {[%clk 0:00:10]}  Nxg2 {[%clk 0:00:13]} 38. Nxg6+ {[%clk 0:00:08]}  Ke6 {[%clk 0:00:14]} 39. Kc2 {[%clk 0:00:05]}  Kf5 {[%clk 0:00:13]} 40. Nf8 {[%clk 0:00:05]}  Nxf4 {[%clk 0:00:13]} 41. Nd7 {[%clk 0:00:05]}  Nxh3 {[%clk 0:00:12]} 42. Kd2 {[%clk 0:00:06]}  Ng5 {[%clk 0:00:11]} 43. Ke3 {[%clk 0:00:06]}  h3 {[%clk 0:00:11]} 44. Kf2 {[%clk 0:00:07]}  Ne4+ {[%clk 0:00:12]} 45. Kg1 {[%clk 0:00:06]}  Nxc3 {[%clk 0:00:12]} 46. a3 {[%clk 0:00:05]}  Nb1 {[%clk 0:00:11]} 47. e6 {[%clk 0:00:06]}  Kxe6 {[%clk 0:00:11]} 48. Nc5+ {[%clk 0:00:07]}  Kd5 {[%clk 0:00:11]} 49. Nxb7 {[%clk 0:00:07]}  Nxa3 {[%clk 0:00:11]} 0-1


[Site "https://www.chess.com"]

[Event "Titled Tuesday Blitz August 16 Early 2022"]
[White "Harsh Suresh"]
[Black "Guz, Ari"]
[WhiteFideId "45018464"]
[BlackFideId "2825759"]
[WhiteElo "2070"]
[BlackElo "1913"]
[Result "0-1"]
[Round "07"]
[TimeControl "180+1"]
[Date "2022.08.16"]
[WhiteClock "0:01:02"]
[BlackClock "0:01:34"]

1. b3 {[%clk 0:03:00]}  e5 {[%clk 0:02:57]} 2. Bb2 {[%clk 0:03:00]}  Nc6 {[%clk 0:02:57]} 3. e3 {[%clk 0:02:58]}  g6 {[%clk 0:02:58]} 4. Nf3 {[%clk 0:02:55]}  Bg7 {[%clk 0:02:58]} 5. d4 {[%clk 0:02:55]}  exd4 {[%clk 0:02:57]} 6. Nxd4 {[%clk 0:02:54]}  Nxd4 {[%clk 0:02:57]} 7. Bxd4 {[%clk 0:02:54]}  Nf6 {[%clk 0:02:57]} 8. Be2 {[%clk 0:02:52]}  O-O {[%clk 0:02:57]} 9. O-O {[%clk 0:02:52]}  d6 {[%clk 0:02:57]} 10. c4 {[%clk 0:02:52]}  Bd7 {[%clk 0:02:57]} 11. Nd2 {[%clk 0:02:47]}  a5 {[%clk 0:02:56]} 12. Bf3 {[%clk 0:02:43]}  Bc6 {[%clk 0:02:57]} 13. Bxc6 {[%clk 0:02:41]}  bxc6 {[%clk 0:02:57]} 14. Qf3 {[%clk 0:02:42]}  c5 {[%clk 0:02:58]} 15. Bc3 {[%clk 0:02:30]}  a4 {[%clk 0:02:57]} 16. g3 {[%clk 0:02:12]}  Re8 {[%clk 0:02:53]} 17. Kg2 {[%clk 0:02:11]}  Nd7 {[%clk 0:02:50]} 18. Bxg7 {[%clk 0:02:10]}  Kxg7 {[%clk 0:02:51]} 19. Rfb1 {[%clk 0:02:06]}  Nb6 {[%clk 0:02:44]} 20. b4 {[%clk 0:02:04]}  cxb4 {[%clk 0:02:44]} 21. Rxb4 {[%clk 0:02:04]}  Qf6 {[%clk 0:02:39]} 22. Rab1 {[%clk 0:02:00]}  Qxf3+ {[%clk 0:02:17]} 23. Kxf3 {[%clk 0:01:59]}  f5 {[%clk 0:02:18]} 24. Rb5 {[%clk 0:01:55]}  Rad8 {[%clk 0:02:10]} 25. h4 {[%clk 0:01:46]}  Re5 {[%clk 0:02:04]} 26. Ke2 {[%clk 0:01:38]}  Kf6 {[%clk 0:01:55]} 27. Rxe5 {[%clk 0:01:32]}  dxe5 {[%clk 0:01:55]} 28. Rb5 {[%clk 0:01:15]}  Ke6 {[%clk 0:01:42]} 29. Rc5 {[%clk 0:01:16]}  Kd6 {[%clk 0:01:42]} 30. Ra5 {[%clk 0:01:15]}  Kc6 {[%clk 0:01:38]} 31. Rxe5 {[%clk 0:01:14]}  Rxd2+ {[%clk 0:01:38]} 32. Kf3 {[%clk 0:01:07]}  Nxc4 {[%clk 0:01:37]} 33. Re7 {[%clk 0:01:06]}  Rd7 {[%clk 0:01:37]} 34. Re8 {[%clk 0:01:05]}  Nd2+ {[%clk 0:01:35]} 35. Ke2 {[%clk 0:01:04]}  Ne4 {[%clk 0:01:35]} 36. Ke1 {[%clk 0:01:03]}  Nc3 {[%clk 0:01:34]} 37. a3 {[%clk 0:01:02]}  Rd1# {[%clk 0:01:34]} 0-1


[Site "https://www.chess.com"]